bitfinex-derivatives/quotes_BTCF0:USTF0_20250127
["timestamp","ask_amount","ask_price","bid_price","bid_amount"]
[1737953151204,0.198896,100600.0,100590.0,0.35724003]
[1737953151392,0.559696,100600.0,100590.0,0.35724003]
[1737953151906,0.198896,100600.0,100590.0,0.35724003]
[1737953152111,0.559696,100600.0,100590.0,0.35724003]
[1737953152509,0.70246563,100600.0,100590.0,0.35724003]
[1737953152807,0.70546563,100600.0,100590.0,0.35724003]
[1737953153901,0.70746563,100600.0,100590.0,0.35724003]
[1737953154603,0.87246563,100600.0,100590.0,0.35724003]
[1737953154903,0.198969,100570.0,100550.0,0.0014918]
[1737953155201,0.198975,100560.0,100550.0,0.0014918]
[1737953155407,0.198961,100570.0,100550.0,0.50506143]
[1737953155802,0.198961,100570.0,100560.0,0.00029785]
[1737953156000,0.19910998,100570.0,100560.0,0.00029785]
[1737953157601,0.55990998,100570.0,100560.0,0.00029785]
[1737953157998,0.20010998,100570.0,100560.0,0.00029785]
[1737953158709,0.00114898,100570.0,100560.0,0.50386748]
[1737953158911,0.00114898,100570.0,100560.0,0.70284248]
[1737953159112,0.00314898,100570.0,100560.0,0.82504248]
[1737953160603,0.3608,100590.0,100560.0,0.62606748]
[1737953160804,0.56168807,100600.0,100580.0,0.559735]
[1737953161004,0.00198807,100600.0,100590.0,0.70248563]
[1737953161204,0.5713484,100630.0,100600.0,0.198893]
[1737953161407,0.5713484,100630.0,100610.0,0.198866]
[1737953161602,0.559642,100630.0,100600.0,0.70245963]
[1737953161814,0.55979098,100630.0,100610.0,0.00014898]
[1737953162313,0.198857,100620.0,100610.0,0.00014898]
[1737953163209,0.00214898,100630.0,100620.0,0.198857]
[1737953163403,0.00214898,100630.0,100620.0,0.559657]
[1737953163602,0.3608,100650.0,100620.0,0.50356963]
[1737953163809,0.3608,100650.0,100630.0,0.70239763]
[1737953164115,0.3608,100650.0,100630.0,0.559628]
[1737953164316,0.70236763,100650.0,100630.0,0.559628]
[1737953164811,0.70251661,100650.0,100630.0,0.559628]
[1737953165009,0.70251661,100650.0,100620.0,2.120053]
[1737953165211,0.559619,100640.0,100620.0,2.120053]
[1737953165517,0.198819,100640.0,100620.0,0.621053]
[1737953165810,0.70238863,100640.0,100620.0,0.3618]
[1737953166019,0.3608,100640.0,100620.0,0.560644]
[1737953166614,0.3608,100640.0,100620.0,0.559644]
[1737953166818,0.3668,100640.0,100620.0,0.560644]
[1737953167206,0.006,100640.0,100620.0,0.560644]
[1737953167407,0.51256963,100640.0,100620.0,0.001]
[1737953167717,0.198837,100630.0,100620.0,0.001]
[1737953167915,0.34160663,100630.0,100620.0,0.001]
[1737953168110,0.70240663,100630.0,100620.0,0.001]
[1737953168311,0.78012963,100630.0,100620.0,0.001]
[1737953168620,0.87536963,100630.0,100620.0,0.001]
[1737953168806,0.198857,100620.0,100610.0,0.00014898]
[1737953169407,0.71634963,100620.0,100610.0,0.00014898]
[1737953170017,0.52049263,100620.0,100580.0,0.36229126]
[1737953170313,0.559703,100600.0,100580.0,0.36229126]
[1737953171015,0.559703,100600.0,100580.0,0.3608]
[1737953171016,0.198916,100590.0,100580.0,0.3608]
[1737953171317,0.559716,100590.0,100580.0,0.00014898]
[1737953171514,0.559716,100590.0,100580.0,0.00314898]
[1737953171915,0.559716,100590.0,100580.0,0.00914898]
[1737953172410,0.559716,100590.0,100580.0,0.00314898]
[1737953172719,0.562716,100590.0,100580.0,0.00314898]
[1737953173114,0.564716,100590.0,100580.0,0.00314898]
[1737953174008,0.565716,100590.0,100580.0,0.00014898]
[1737953174706,0.006,100590.0,100580.0,0.71657761]
[1737953175219,0.559643,100630.0,100600.0,0.198885]
[1737953175411,0.559643,100630.0,100610.0,0.3608]
[1737953175612,0.559643,100630.0,100610.0,0.71636263]
[1737953175915,0.198843,100630.0,100610.0,0.71636263]
[1737953176313,0.19899198,100630.0,100610.0,0.71651161]
[1737953176521,0.20499198,100630.0,100610.0,0.71651161]
[1737953176718,0.20499198,100630.0,100610.0,0.55981898]
[1737953176919,0.21399198,100630.0,100610.0,0.56081898]
[1737953177116,0.01514898,100630.0,100610.0,0.71751161]
[1737953177310,0.00014898,100630.0,100610.0,0.71651161]
[1737953177620,0.00214898,100630.0,100610.0,0.71651161]
[1737953177820,0.54323683,100640.0,100610.0,0.71651161]
[1737953178215,0.54323683,100640.0,100620.0,0.559646]
[1737953178418,0.559601,100650.0,100630.0,0.198837]
[1737953179014,0.55974998,100650.0,100630.0,0.198837]
[1737953179521,0.001,100640.0,100630.0,0.198837]
[1737953179720,0.001,100640.0,100630.0,0.199837]
[1737953180014,0.001,100640.0,100630.0,0.001]
[1737953180015,0.199817,100640.0,100630.0,0.001]
[1737953180212,0.71630963,100640.0,100630.0,0.001]
[1737953180614,0.51749263,100640.0,100610.0,0.19901998]
[1737953180817,0.19885,100630.0,100610.0,0.19901998]
[1737953181512,0.55965,100630.0,100610.0,0.19901998]
[1737953181716,0.198857,100620.0,100610.0,0.00014898]
[1737953182210,0.71634963,100620.0,100610.0,0.00014898]
[1737953183021,0.70096446,100620.0,100610.0,0.00014898]
[1737953184220,0.76376446,100620.0,100610.0,0.00014898]
[1737953184525,0.76376446,100620.0,100590.0,0.00149124]
[1737953184526,0.198896,100600.0,100590.0,0.00149124]
[1737953184730,0.88148863,100600.0,100590.0,0.00149124]
[1737953184923,1.04339263,100600.0,100570.0,0.53291918]
[1737953185117,0.198936,100580.0,100570.0,0.53291918]
[1737953185313,0.198936,100580.0,100570.0,0.89371918]
[1737953185523,0.19892,100590.0,100570.0,1.05056079]
[1737953185914,0.19892,100590.0,100580.0,0.3608]
[1737953186116,0.19892,100590.0,100570.0,1.05456079]
[1737953186311,0.198936,100580.0,100570.0,0.89786816]
[1737953186513,0.198936,100580.0,100570.0,0.36094898]
[1737953186712,0.198936,100580.0,100570.0,0.36694898]
[1737953187324,0.198936,100580.0,100570.0,0.36494898]
[1737953187526,0.198936,100580.0,100570.0,0.36694898]
[1737953188527,0.36094898,100600.0,100570.0,0.51964161]
[1737953188725,0.198916,100590.0,100580.0,0.51749263]
[1737953188933,0.198916,100590.0,100580.0,1.5]
[1737953189425,0.198936,100580.0,100570.0,0.36794898]
[1737953189824,0.198936,100580.0,100570.0,0.36594898]
[1737953190022,0.198936,100580.0,100570.0,0.36794898]
[1737953191527,0.198936,100580.0,100570.0,0.36294898]
[1737953192029,0.198936,100580.0,100570.0,0.36694898]
[1737953192417,0.198936,100580.0,100570.0,0.36494898]
[1737953192725,0.559736,100580.0,100570.0,0.00214898]
[1737953192926,0.71642863,100580.0,100570.0,0.00214898]
[1737953193119,0.559736,100580.0,100570.0,0.00214898]
[1737953193324,0.71642863,100580.0,100570.0,0.00214898]
[1737953194217,0.559736,100580.0,100570.0,0.00214898]
[1737953194829,0.71642863,100580.0,100570.0,0.00214898]
[1737953195827,0.559736,100580.0,100570.0,0.00214898]
[1737953196932,0.71642863,100580.0,100570.0,0.00214898]
[1737953197726,0.559736,100580.0,100570.0,0.00214898]
[1737953197919,0.198936,100580.0,100570.0,0.00214898]
[1737953199336,0.57177612,100600.0,100570.0,0.56191798]
[1737953199535,0.1651,100580.0,100570.0,0.62461798]
[1737953199729,0.51749263,100590.0,100570.0,0.62461798]
[1737953200226,0.71643063,100590.0,100570.0,0.62461798]
[1737953200426,0.88153063,100590.0,100570.0,0.62461798]
[1737953201734,0.88153063,100590.0,100570.0,0.62361798]
[1737953201934,0.88153063,100590.0,100570.0,0.26381798]
[1737953203833,0.88154563,100580.0,100570.0,0.00214898]
[1737953204533,0.559753,100580.0,100570.0,0.00214898]
[1737953204834,0.742041,100590.0,100570.0,0.20112198]
[1737953205037,0.679941,100590.0,100570.0,0.20112198]
[1737953205337,0.97470563,100580.0,100570.0,0.00214898]
[1737953205537,0.198973,100570.0,100560.0,0.00029785]
[1737953205730,0.71646563,100570.0,100560.0,0.00029785]
[1737953206035,0.1651,100550.0,100530.0,0.23689108]
[1737953206235,0.559832,100540.0,100530.0,0.23689108]
[1737953207542,0.71652463,100540.0,100530.0,0.23689108]
[1737953207733,0.71652463,100540.0,100520.0,0.00014898]
[1737953207734,0.199052,100530.0,100520.0,0.00014898]
[1737953207937,0.71654463,100530.0,100520.0,0.00014898]
[1737953208434,0.559852,100530.0,100520.0,0.00014898]
[1737953208635,0.199052,100530.0,100520.0,0.00014898]
[1737953209034,0.559852,100530.0,100520.0,0.00014898]
[1737953209237,0.559852,100530.0,100520.0,0.00914898]
[1737953209730,0.71654463,100530.0,100520.0,0.00914898]
[1737953210840,0.71654463,100530.0,100520.0,0.01314898]
[1737953211141,0.71654463,100530.0,100520.0,0.00414898]
[1737953211339,0.559852,100530.0,100520.0,0.00514898]
[1737953211537,0.559852,100530.0,100520.0,0.00114898]
[1737953211843,0.562852,100530.0,100520.0,0.00014898]
[1737953212431,0.3638,100530.0,100520.0,0.00014898]
[1737953212638,0.003,100530.0,100520.0,0.19922098]
[1737953213937,0.003,100530.0,100520.0,0.56002098]
[1737953214140,0.003,100530.0,100520.0,0.71671361]
[1737953214442,0.00014898,100550.0,100520.0,2.01764161]
[1737953214639,0.19916298,100550.0,100540.0,0.3608]
[1737953214945,0.19916298,100550.0,100530.0,0.675641]
[1737953215146,0.199032,100540.0,100530.0,0.675641]
[1737953215444,0.199032,100540.0,100530.0,0.1158]
[1737953216836,0.199032,100540.0,100530.0,0.314852]
[1737953217035,0.20416498,100550.0,100530.0,0.675652]
[1737953217240,0.001,100540.0,100530.0,0.675652]
[1737953218245,0.20516498,100550.0,100530.0,0.675652]
[1737953218443,0.200035,100540.0,100530.0,0.675652]
[1737953218643,0.001,100540.0,100530.0,0.675652]
[1737953219054,0.001,100540.0,100530.0,0.83234463]
[1737953220147,0.002,100540.0,100530.0,0.83234463]
[1737953220540,0.00014898,100550.0,100540.0,0.199035]
[1737953220745,0.00014898,100550.0,100540.0,0.622135]
[1737953221549,0.00214898,100550.0,100540.0,0.622135]
[1737953221738,0.00414898,100550.0,100540.0,0.622135]
[1737953222144,0.20316198,100550.0,100540.0,0.622135]
[1737953222447,0.35985461,100550.0,100540.0,0.4231]
[1737953222651,0.199033,100540.0,100530.0,0.1158]
[1737953222847,0.51749263,100540.0,100520.0,0.57124955]
[1737953223151,0.199054,100530.0,100520.0,0.57124955]
[1737953223352,0.199054,100530.0,100520.0,0.56001898]
[1737953226456,0.200054,100530.0,100520.0,0.56001898]
[1737953227649,0.200054,100530.0,100520.0,0.36094898]
[1737953228049,0.200054,100530.0,100520.0,0.56002298]
[1737953230057,0.71777549,100530.0,100520.0,0.00014898]
[1737953230542,0.77777549,100530.0,100520.0,0.00014898]
[1737953232053,0.77784983,100530.0,100520.0,0.00014898]
[1737953234048,0.94294983,100530.0,100520.0,0.00014898]
[1737953234761,0.83018948,100530.0,100520.0,0.00014898]
[1737953235755,0.72552174,100530.0,100520.0,0.00014898]
[1737953236051,0.560854,100530.0,100520.0,0.00014898]
[1737953236257,0.001,100530.0,100520.0,0.66468872]
[1737953236563,0.001,100530.0,100520.0,2.33838872]
[1737953237054,0.001,100530.0,100520.0,1.87292098]
[1737953237258,0.001,100530.0,100520.0,2.23372098]
[1737953237560,0.001,100530.0,100520.0,0.73372098]
[1737953240952,0.55996698,100550.0,100530.0,0.199039]
[1737953241158,0.55996698,100550.0,100530.0,0.71677603]
[1737953241558,0.19916698,100550.0,100530.0,0.559839]
[1737953241959,0.35610401,100550.0,100530.0,0.559839]
[1737953242260,0.199032,100540.0,100530.0,0.559839]
[1737953242564,0.199032,100540.0,100530.0,0.560839]
[1737953242964,0.72090101,100550.0,100530.0,0.560839]
[1737953243166,0.00414898,100550.0,100540.0,0.199032]
[1737953243369,0.00214898,100550.0,100540.0,0.559832]
[1737953243658,0.00214898,100550.0,100540.0,0.199032]
[1737953244557,0.00014898,100550.0,100540.0,0.199032]
[1737953244867,0.71691201,100550.0,100540.0,0.199032]
[1737953245066,0.35611201,100550.0,100540.0,0.199032]
[1737953245267,0.20117498,100550.0,100540.0,0.199032]
[1737953245666,0.00214898,100550.0,100540.0,0.559832]
[1737953246167,0.00214898,100550.0,100540.0,0.71676903]
[1737953249368,0.00214898,100550.0,100540.0,0.559832]
[1737953249969,0.00214898,100550.0,100540.0,0.71676903]
[1737953250361,0.57070979,100580.0,100540.0,0.81773703]
[1737953250566,0.559755,100580.0,100570.0,0.198972]
[1737953250966,0.198955,100580.0,100570.0,0.559772]
[1737953251371,0.198955,100580.0,100570.0,0.198972]
[1737953251665,0.198972,100570.0,100560.0,0.55993998]
[1737953252174,0.198972,100570.0,100560.0,0.19913998]
[1737953253068,0.19782301,100570.0,100560.0,0.19913998]
[1737953253574,0.19682301,100570.0,100560.0,0.20213998]
[1737953254370,0.35589103,100580.0,100560.0,0.20213998]
[1737953254565,0.198954,100580.0,100560.0,0.20213998]
[1737953255469,0.67728298,100590.0,100570.0,0.198965]
[1737953255675,0.67728298,100590.0,100570.0,0.559765]
[1737953256475,0.83422001,100590.0,100570.0,0.198965]
[1737953256669,0.198952,100580.0,100560.0,0.20013798]
[1737953256869,0.3608,100570.0,100560.0,0.00114898]
[1737953257477,0.71668903,100580.0,100560.0,0.00114898]
[1737953258174,0.71668903,100580.0,100560.0,0.00014898]
[1737953258976,0.71668903,100580.0,100560.0,0.00314898]
[1737953259775,0.71670903,100570.0,100560.0,0.00314898]
[1737953260670,0.66433355,100570.0,100560.0,0.00314898]
[1737953262079,0.559772,100570.0,100560.0,0.00314898]
[1737953262275,0.559772,100570.0,100560.0,0.00214898]
[1737953262577,0.559772,100570.0,100560.0,0.00314898]
[1737953262875,0.559772,100570.0,100560.0,0.00114898]
[1737953263080,0.559772,100570.0,100560.0,0.00314898]
[1737953264375,0.198972,100570.0,100560.0,0.00314898]
[1737953264579,0.364072,100570.0,100560.0,0.00314898]
[1737953264981,0.724872,100570.0,100560.0,0.00314898]
[1737953265173,0.780372,100570.0,100560.0,0.00314898]
[1737953266382,0.19904,100540.0,100520.0,0.37726274]
[1737953266686,0.30361255,100530.0,100520.0,0.17819474]
[1737953266878,0.307651,100530.0,100520.0,0.17819474]
[1737953267083,0.77301255,100530.0,100520.0,0.17819474]
[1737953268685,0.93811255,100530.0,100520.0,0.18319474]
[1737953269081,0.93811255,100530.0,100520.0,0.17819474]
[1737953269283,1.0436741,100530.0,100520.0,0.17819474]
[1737953269486,0.199071,100520.0,100510.0,0.53306816]
[1737953269781,0.559871,100520.0,100510.0,0.00014898]
[1737953270975,0.559871,100520.0,100510.0,0.00114898]
[1737953272186,0.559871,100520.0,100510.0,0.00214898]
[1737953272382,0.66443255,100520.0,100510.0,0.00214898]
[1737953273882,0.559871,100520.0,100510.0,0.00214898]
[1737953274584,0.559871,100520.0,100510.0,1.50214898]
[1737953274778,0.73574058,100530.0,100510.0,2.16659153]
[1737953274977,0.3608,100530.0,100520.0,0.10456155]
[1737953275177,0.36094898,100540.0,100520.0,0.46536155]
[1737953275381,0.36094898,100540.0,100530.0,0.30361355]
[1737953275588,0.36094898,100540.0,100530.0,0.35791355]
[1737953275994,0.00014898,100540.0,100530.0,0.71871355]
[1737953276486,0.00214898,100540.0,100530.0,0.71871355]
[1737953276692,0.00214898,100540.0,100530.0,0.77102229]
[1737953278189,0.00214898,100540.0,100530.0,0.614152]
[1737953278494,0.20218098,100540.0,100530.0,0.614152]
[1737953278896,0.00314898,100540.0,100530.0,0.614152]
[1737953279197,0.00314898,100540.0,100530.0,0.77102229]
[1737953279499,0.20218098,100540.0,100530.0,0.253352]
[1737953279892,0.71985127,100540.0,100520.0,0.3608]
[1737953280100,0.56298098,100540.0,100520.0,0.559869]
[1737953280291,0.20218098,100540.0,100520.0,0.559869]
[1737953280487,0.20218098,100540.0,100520.0,0.71673929]
[1737953280699,0.20218098,100540.0,100520.0,0.559869]
[1737953281003,0.56298098,100540.0,100520.0,0.559869]
[1737953281193,0.199051,100530.0,100510.0,0.36971515]
[1737953281397,0.199051,100530.0,100510.0,0.71943898]
[1737953282302,0.199051,100530.0,100510.0,0.72043898]
[1737953282496,0.199051,100530.0,100510.0,0.72143898]
[1737953284104,0.53498833,100540.0,100510.0,0.67921927]
[1737953284299,0.55998298,100540.0,100520.0,0.35593529]
[1737953284993,0.00014898,100540.0,100530.0,0.71672229]
[1737953285300,0.00014898,100540.0,100530.0,0.35592229]
[1737953285500,0.00014898,100540.0,100530.0,0.199052]
[1737953285701,0.20018598,100540.0,100520.0,0.559868]
[1737953285896,0.20018598,100540.0,100520.0,2.059868]
[1737953286309,0.55998598,100540.0,100520.0,0.199068]
[1737953286502,0.20118598,100540.0,100520.0,0.559868]
[1737953286702,0.20118598,100540.0,100520.0,2.059868]
[1737953287505,0.56198598,100540.0,100520.0,1.699068]
[1737953287715,0.20118598,100540.0,100520.0,1.699068]
[1737953288010,0.20118598,100540.0,100520.0,2.059868]
[1737953288210,0.20018598,100540.0,100520.0,2.059868]
[1737953288396,0.20018598,100540.0,100520.0,0.559868]
[1737953289201,0.20018598,100540.0,100520.0,0.199068]
[1737953289401,0.199052,100530.0,100510.0,0.35863598]
[1737953289605,0.724952,100530.0,100510.0,0.35863598]
[1737953289811,0.559852,100530.0,100510.0,0.35863598]
[1737953290213,0.3608,100530.0,100520.0,0.199071]
[1737953291106,0.199055,100530.0,100510.0,0.72043698]
[1737953291312,0.199055,100530.0,100510.0,0.72143698]
[1737953291514,0.199055,100530.0,100510.0,0.72043698]
[1737953291811,0.199055,100530.0,100520.0,0.199074]
[1737953292112,0.200055,100530.0,100520.0,0.199074]
[1737953292517,0.199055,100530.0,100520.0,0.199074]
[1737953295006,0.199055,100530.0,100520.0,0.559874]
[1737953295210,0.200055,100530.0,100520.0,0.3608]
[1737953295410,0.200055,100530.0,100510.0,0.87630927]
[1737953295810,0.200055,100530.0,100520.0,0.3608]
[1737953296209,0.200055,100530.0,100510.0,0.87630927]
[1737953296408,0.200055,100530.0,100520.0,0.3608]
[1737953296612,0.200055,100530.0,100510.0,0.82405186]
[1737953296811,0.199055,100530.0,100510.0,0.82505186]
[1737953297110,0.199074,100520.0,100510.0,0.82605186]
[1737953297302,0.199074,100520.0,100510.0,0.72143898]
[1737953297508,0.199074,100520.0,100510.0,0.71943898]
[1737953298312,0.199074,100520.0,100510.0,0.52134898]
[1737953299117,0.199074,100520.0,100510.0,0.52234898]
[1737953299615,0.199074,100520.0,100510.0,0.52134898]
[1737953299915,0.199074,100520.0,100510.0,0.16154898]
[1737953301414,0.199074,100520.0,100510.0,0.00214898]
[1737953301619,0.559874,100520.0,100510.0,0.00214898]
[1737953302318,0.199074,100520.0,100510.0,0.00214898]
[1737953304121,0.720162,100530.0,100510.0,0.66665586]
[1737953304422,0.46397488,100530.0,100510.0,0.56204298]
[1737953304721,0.359362,100530.0,100510.0,0.56204298]
[1737953304922,0.199074,100520.0,100510.0,0.56204298]
[1737953305121,0.199074,100520.0,100510.0,0.36294898]
[1737953305620,0.199074,100520.0,100510.0,0.56204298]
[1737953306818,0.199074,100520.0,100510.0,0.00114898]
[1737953307023,0.199074,100520.0,100510.0,0.00214898]
[1737953309327,0.66448688,100520.0,100510.0,0.00214898]
[1737953309830,0.82958688,100520.0,100510.0,0.00214898]
[1737953311417,0.72203288,100520.0,100500.0,0.1]
[1737953311723,0.199094,100510.0,100500.0,0.1]
[1737953313825,0.66450688,100510.0,100500.0,0.1]
[1737953314127,0.66450688,100510.0,100500.0,0.106]
[1737953316127,0.72512698,100520.0,100500.0,0.40972188]
[1737953316328,0.00014898,100520.0,100510.0,0.30370688]
[1737953316631,0.00014898,100520.0,100510.0,0.66450688]
[1737953317232,0.00014898,100520.0,100510.0,2.16450688]
[1737953318237,0.00014898,100520.0,100510.0,2.16650688]
[1737953320331,0.00014898,100520.0,100510.0,0.66650688]
[1737953320536,0.19922298,100520.0,100510.0,0.561894]
[1737953321035,0.00014898,100520.0,100510.0,0.561894]
[1737953321430,0.00014898,100520.0,100510.0,0.66650688]
[1737953321733,1.4328441,100550.0,100530.0,0.19905]
[1737953322838,1.43299308,100550.0,100530.0,0.19919898]
[1737953323028,1.42212998,100550.0,100530.0,0.19919898]
[1737953323228,0.55996998,100550.0,100540.0,0.199035]
[1737953323434,0.20116998,100550.0,100540.0,0.199035]
[1737953323631,0.20116998,100550.0,100540.0,0.559835]
[1737953323829,0.20416998,100550.0,100540.0,0.559835]
[1737953324328,0.00214898,100550.0,100540.0,0.559835]
[1737953324535,0.00514898,100550.0,100540.0,0.66544788]
[1737953328445,0.00514898,100550.0,100540.0,0.67606276]
[1737953328837,0.00514898,100550.0,100540.0,2.17606276]
[1737953329038,1.01338366,100580.0,100560.0,0.198988]
[1737953329343,1.01338366,100580.0,100560.0,0.559788]
[1737953329741,1.01338366,100580.0,100560.0,0.715588]
[1737953330244,1.01853264,100580.0,100560.0,0.71573698]
[1737953330445,1.00773695,100580.0,100560.0,0.71573698]
[1737953330635,1.00773695,100580.0,100560.0,0.71673698]
[1737953330636,1.00873695,100580.0,100560.0,0.71673698]
[1737953330836,0.30358788,100570.0,100560.0,0.35593698]
[1737953331745,0.30358788,100570.0,100560.0,0.71673698]
[1737953332443,0.198975,100570.0,100560.0,0.71673698]
[1737953333142,0.004,100570.0,100560.0,0.71573698]
[1737953333737,0.82692086,100580.0,100560.0,0.71573698]
[1737953333937,0.002,100570.0,100560.0,0.71573698]
[1737953335045,0.82992086,100580.0,100560.0,0.71573698]
[1737953336152,0.72530798,100580.0,100570.0,0.198975]
[1737953336640,0.72330798,100580.0,100570.0,0.198975]
[1737953336839,0.72330798,100580.0,100560.0,0.72726399]
[1737953336840,0.82792086,100580.0,100560.0,0.72726399]
[1737953337344,0.83092086,100580.0,100560.0,0.72726399]
[1737953337642,0.83092086,100580.0,100570.0,0.001]
[1737953339337,0.72630798,100580.0,100570.0,0.001]
[1737953339737,0.72630798,100580.0,100560.0,0.72726399]
[1737953340446,0.72630798,100580.0,100560.0,0.83187687]
[1737953340948,0.72630798,100580.0,100570.0,0.199975]
[1737953341248,0.56390798,100580.0,100570.0,0.199975]
[1737953341437,0.56290798,100580.0,100570.0,0.198975]
[1737953341746,0.56390798,100580.0,100570.0,0.198975]
[1737953342349,0.46956186,100580.0,100560.0,0.01167099]
[1737953342547,0.46956186,100580.0,100560.0,0.36194898]
[1737953342548,0.36494898,100580.0,100560.0,0.36194898]
[1737953342848,0.36494898,100580.0,100570.0,0.198975]
[1737953343247,0.36194898,100580.0,100570.0,0.199975]
[1737953343443,0.00414898,100580.0,100570.0,0.66538788]
[1737953343649,0.00414898,100580.0,100570.0,0.82688788]
[1737953343842,0.00314898,100580.0,100570.0,0.82588788]
[1737953344044,0.00414898,100580.0,100570.0,0.82588788]
[1737953344547,0.00414898,100580.0,100570.0,0.82688788]
[1737953344849,0.10876186,100580.0,100570.0,0.199975]
[1737953345051,0.30771786,100580.0,100570.0,0.001]
[1737953345450,0.47111786,100580.0,100570.0,0.001]
[1737953345647,0.46911786,100580.0,100570.0,0.001]
[1737953345850,0.36450498,100580.0,100570.0,0.001]
[1737953346246,0.36450498,100580.0,100560.0,0.57015782]
[1737953346442,0.30358788,100570.0,100560.0,0.00014898]
[1737953346841,0.198975,100570.0,100560.0,0.55994398]
[1737953347250,0.30358788,100570.0,100560.0,0.00014898]
[1737953347449,0.66438788,100570.0,100560.0,0.00214898]
[1737953347650,0.66438788,100570.0,100560.0,0.00314898]
[1737953348147,0.82948788,100570.0,100560.0,0.00314898]
[1737953348450,0.199035,100540.0,100530.0,0.59769108]
[1737953348852,0.71824788,100540.0,100530.0,0.23689108]
[1737953349155,0.76964788,100540.0,100530.0,0.23689108]
[1737953349357,0.665035,100540.0,100530.0,0.23689108]
[1737953349867,0.665035,100540.0,100530.0,0.23889108]
[1737953350153,0.665035,100540.0,100530.0,0.23989108]
[1737953351055,0.665035,100540.0,100530.0,0.003]
[1737953351843,0.76964788,100540.0,100530.0,0.003]
[1737953352243,0.57061288,100540.0,100520.0,0.00014898]
[1737953352449,0.75590688,100530.0,100520.0,0.00014898]
[1737953354354,0.93272197,100530.0,100520.0,0.00014898]
[1737953356955,0.82810909,100530.0,100520.0,0.00014898]
[1737953357346,0.93272197,100530.0,100520.0,0.00014898]
[1737953357547,0.82810909,100530.0,100520.0,0.00014898]
[1737953357855,0.93272197,100530.0,100520.0,0.00014898]
[1737953358857,0.75690688,100530.0,100520.0,0.00014898]
[1737953360152,0.652294,100530.0,100520.0,0.00014898]
[1737953360552,0.75690688,100530.0,100520.0,0.00014898]
[1737953360858,0.652294,100530.0,100520.0,0.00014898]
[1737953361054,0.200054,100530.0,100520.0,0.10476186]
[1737953361558,0.001,100530.0,100520.0,0.76753586]
[1737953361944,0.001,100530.0,100520.0,0.40673586]
[1737953362145,0.001,100530.0,100520.0,0.10304898]
[1737953362351,0.66546788,100530.0,100520.0,0.00014898]
[1737953362655,0.76526788,100530.0,100520.0,0.00014898]
[1737953363458,0.660655,100530.0,100520.0,0.00014898]
[1737953364658,0.93036788,100530.0,100520.0,0.00014898]
[1737953366351,0.825755,100530.0,100520.0,0.00014898]
[1737953366555,0.001,100530.0,100520.0,0.19922298]
[1737953366759,0.001,100530.0,100520.0,0.25162298]
[1737953367657,0.200054,100530.0,100520.0,0.05254898]
[1737953367858,0.66546688,100530.0,100520.0,0.05254898]
[1737953368050,0.83056688,100530.0,100520.0,0.05254898]
[1737953368252,0.83056688,100530.0,100520.0,0.00014898]
[1737953368761,0.93517976,100530.0,100520.0,0.00014898]
[1737953369059,0.83056688,100530.0,100520.0,0.00014898]
[1737953369647,0.93517976,100530.0,100520.0,0.00014898]
[1737953369964,0.93517976,100530.0,100500.0,0.2074]
[1737953369965,0.199094,100510.0,100500.0,0.2074]
[1737953370161,0.66450688,100510.0,100500.0,0.1]
[1737953371566,1.02530688,100510.0,100500.0,0.104]
[1737953371757,1.02530688,100510.0,100500.0,0.106]
[1737953371952,1.08275288,100510.0,100490.0,0.00014898]
[1737953372258,0.66452688,100500.0,100490.0,0.00014898]
[1737953373364,0.66452688,100500.0,100490.0,0.00814898]
[1737953373753,0.66452688,100500.0,100490.0,0.00014898]
[1737953374048,0.66452688,100500.0,100490.0,0.00714898]
[1737953374352,0.82962688,100500.0,100490.0,0.00714898]
[1737953374551,0.66452688,100500.0,100490.0,0.00714898]
[1737953374751,0.76913976,100500.0,100490.0,0.00714898]
[1737953374960,0.76913976,100500.0,100490.0,0.00614898]
[1737953375760,0.66452688,100500.0,100490.0,0.00614898]
[1737953376360,0.76913976,100500.0,100490.0,0.00614898]
[1737953376565,0.66452688,100500.0,100490.0,0.00614898]
[1737953376866,0.76913976,100500.0,100490.0,0.00614898]
[1737953377053,0.66452688,100500.0,100490.0,0.00414898]
[1737953377261,0.75600688,100500.0,100490.0,0.00514898]
[1737953377459,0.3608,100500.0,100490.0,0.00214898]
[1737953377763,0.3608,100500.0,100490.0,0.35558298]
[1737953377969,0.10461288,100500.0,100490.0,0.35558298]
[1737953378361,0.46541288,100500.0,100490.0,0.35558298]
[1737953378561,0.10461288,100500.0,100490.0,0.35558298]
[1737953379068,0.14598608,100500.0,100490.0,0.71638298]
[1737953379269,0.25059896,100500.0,100490.0,0.71638298]
[1737953379963,0.61139896,100500.0,100490.0,0.15644898]
[1737953380268,0.81051296,100500.0,100490.0,0.00214898]
[1737953383257,0.66452688,100500.0,100490.0,0.00214898]
[1737953383968,0.3608,100500.0,100490.0,0.00214898]
[1737953384870,0.82962688,100500.0,100490.0,0.00214898]
[1737953390166,0.97561296,100500.0,100490.0,0.00214898]
[1737953392776,0.50678608,100500.0,100490.0,0.00214898]
[1737953392971,0.50678608,100500.0,100490.0,0.20128298]
[1737953393173,0.61139896,100500.0,100490.0,0.20128298]
[1737953393377,0.81051296,100500.0,100490.0,0.00214898]
[1737953394971,1.08022584,100500.0,100490.0,0.00214898]
[1737953396675,0.97561296,100500.0,100490.0,0.00214898]
[1737953397578,0.82962688,100500.0,100490.0,0.00214898]
[1737953398275,0.93423976,100500.0,100490.0,0.00214898]
[1737953398872,0.82962688,100500.0,100490.0,0.00214898]
[1737953399577,0.66452688,100500.0,100490.0,0.00214898]
[1737953399779,0.46541288,100500.0,100490.0,0.20128298]
[1737953400085,0.66452688,100500.0,100490.0,0.00214898]
[1737953404683,0.82962688,100500.0,100490.0,0.00214898]
[1737953407285,0.3608,100500.0,100490.0,0.00214898]
[1737953407771,0.46541288,100500.0,100490.0,0.00214898]
[1737953408478,0.84640628,100510.0,100490.0,0.56208298]
[1737953408679,0.84536627,100510.0,100500.0,0.0938]
[1737953408877,0.84536627,100510.0,100500.0,0.1427]
[1737953409078,1.04446027,100510.0,100500.0,0.1427]
[1737953410283,0.68026627,100510.0,100500.0,0.1427]
[1737953410484,0.87936027,100510.0,100500.0,0.1427]
[1737953411487,1.04446027,100510.0,100490.0,0.56008298]
[1737953411683,0.30372688,100500.0,100490.0,0.00014898]
[1737953412281,0.66452688,100500.0,100490.0,0.00014898]
[1737953412677,0.66452688,100500.0,100490.0,0.00114898]
[1737953412883,0.66452688,100500.0,100490.0,0.00214898]